bitfinex/quotes_BTCUSD_20250328
["timestamp","ask_amount","ask_price","bid_price","bid_amount"]
[1743143216371,2.51572244,86096.0,86095.0,4.9e-07]
[1743143217161,2.2611448,86096.0,86095.0,4.9e-07]
[1743143217362,2.4014248,86096.0,86095.0,4.9e-07]
[1743143217573,2.3519248,86096.0,86095.0,4.9e-07]
[1743143217826,2.37014519,86096.0,86095.0,4.9e-07]
[1743143218122,2.37014519,86096.0,86095.0,0.00016979]
[1743143218324,2.37048379,86096.0,86095.0,7.9e-07]
[1743143218561,2.31293189,86096.0,86095.0,7.9e-07]
[1743143218751,2.22973189,86096.0,86095.0,7.9e-07]
[1743143219090,2.17302615,86096.0,86095.0,7.9e-07]
[1743143221001,2.03274615,86096.0,86095.0,7.9e-07]
[1743143221205,2.17302615,86096.0,86095.0,7.9e-07]
[1743143222739,1.30635435,86096.0,86095.0,7.9e-07]
[1743143222915,1.72061199,86096.0,86095.0,7.9e-07]
[1743143223323,1.60635435,86096.0,86095.0,7.9e-07]
[1743143224818,1.58813396,86096.0,86095.0,7.9e-07]
[1743143226935,1.72837396,86096.0,86095.0,7.9e-07]
[1743143229298,1.74659373,86096.0,86095.0,7.9e-07]
[1743143230552,1.82179373,86096.0,86095.0,7.9e-07]
[1743143230752,1.93605137,86096.0,86095.0,7.9e-07]
[1743143232640,2.08605137,86096.0,86095.0,7.9e-07]
[1743143234840,2.0678316,86096.0,86095.0,7.9e-07]
[1743143235051,2.18208924,86096.0,86095.0,7.9e-07]
[1743143235389,0.548978,86073.0,86072.0,3.9e-07]
[1743143235930,0.56071997,86073.0,86072.0,3.9e-07]
[1743143236590,1.56071997,86073.0,86072.0,3.9e-07]
[1743143238990,1.60255574,86073.0,86072.0,3.9e-07]
[1743143240383,1.59081377,86073.0,86072.0,3.9e-07]
[1743143240608,1.59081377,86073.0,86072.0,0.16015803]
[1743143240812,1.26720125,86073.0,86072.0,0.16015803]
[1743143241211,0.26720125,86073.0,86072.0,0.16015803]
[1743143241801,0.26754005,86073.0,86072.0,0.16015803]
[1743143242546,0.26254005,86073.0,86072.0,0.17469888]
[1743143242704,0.26254005,86073.0,86072.0,0.25499888]
[1743143242705,0.01856205,86073.0,86072.0,0.25499888]
[1743143243031,0.232328,86085.0,86082.0,0.0793]
[1743143243231,0.011616,86084.0,86083.0,0.12879849]
[1743143243384,0.243947,86084.0,86083.0,0.12879849]
[1743143244383,0.243947,86084.0,86083.0,0.14044327]
[1743143246438,0.243947,86084.0,86083.0,0.12879849]
[1743143248971,0.26216525,86084.0,86083.0,0.12879849]
[1743143252656,0.26216525,86084.0,86083.0,0.20789849]
[1743143253449,0.01821825,86084.0,86083.0,0.20789849]
[1743143253731,0.01821825,86084.0,86083.0,0.26941449]
[1743143253949,0.232323,86087.0,86086.0,0.0799]
[1743143254153,0.243939,86087.0,86086.0,0.20869849]
[1743143256342,0.243939,86087.0,86086.0,0.12879849]
[1743143256747,0.248939,86087.0,86086.0,0.11625764]
[1743143258485,0.26715653,86087.0,86086.0,0.11625764]
[1743143259981,0.26715653,86087.0,86086.0,0.11425764]
[1743143260418,0.26715653,86087.0,86086.0,0.11525764]
[1743143263817,0.26215653,86087.0,86086.0,0.11525764]
[1743143264180,0.26715653,86087.0,86086.0,0.11525764]
[1743143264587,0.248939,86087.0,86086.0,0.11525764]
[1743143268700,0.243939,86087.0,86086.0,0.11525764]
[1743143268901,0.243939,86087.0,86086.0,0.12979849]
[1743143269011,0.26215716,86087.0,86086.0,0.12979849]
[1743143273602,0.01821816,86087.0,86086.0,0.12979849]
[1743143273994,0.26215716,86087.0,86086.0,0.15157903]
[1743143274616,0.243939,86087.0,86086.0,0.15157903]
[1743143279059,0.26249582,86087.0,86086.0,0.15157903]
[1743143280388,0.01855682,86087.0,86086.0,0.15157903]
[1743143280607,0.01855682,86087.0,86086.0,0.50580403]
[1743143280815,0.01855682,86087.0,86086.0,0.51742003]
[1743143281252,0.01855682,86087.0,86086.0,0.57869456]
[1743143281465,0.0003388,86087.0,86086.0,1.24225256]
[1743143281670,0.0003388,86087.0,86086.0,1.24125256]
[1743143281875,0.01821565,86102.0,86096.0,0.0754]
[1743143282075,0.01821565,86102.0,86101.0,0.34654264]
[1743143282276,0.01821565,86102.0,86101.0,0.35815664]
[1743143282475,0.01821565,86102.0,86101.0,0.3813391]
[1743143283651,0.01821565,86102.0,86101.0,0.37269749]
[1743143283850,0.01821565,86102.0,86101.0,0.39447803]
[1743143284734,0.011613,86108.0,86103.0,0.243891]
[1743143285064,0.24387,86111.0,86108.0,0.01454085]
[1743143285205,0.24387,86111.0,86109.0,0.11425764]
[1743143285408,0.24387,86111.0,86110.0,0.60312]
[1743143285661,0.24387,86111.0,86110.0,0.72897427]
[1743143286833,0.24387,86111.0,86110.0,0.74351512]
[1743143287725,0.24387,86111.0,86110.0,0.74551512]
[1743143288574,0.243862,86114.0,86111.0,0.01454085]
[1743143288735,0.011612,86113.0,86112.0,0.12879849]
[1743143289356,0.02982538,86113.0,86112.0,0.12879849]
[1743143290197,0.01821338,86113.0,86112.0,0.12879849]
[1743143291376,0.01821338,86113.0,86112.0,0.13079849]
[1743143292107,0.01855198,86113.0,86112.0,0.13079849]
[1743143294614,0.0003386,86113.0,86112.0,0.13079849]
[1743143294979,0.0003386,86113.0,86112.0,0.36305349]
[1743143295653,0.0003386,86113.0,86112.0,0.13079849]
[1743143297377,0.0003386,86113.0,86112.0,0.25999849]
[1743143297594,0.0003384,86131.0,86112.0,0.25999849]
[1743143297595,0.0003384,86131.0,86130.0,0.243817]
[1743143297811,0.0003384,86131.0,86130.0,0.56171549]
[1743143298214,0.01854593,86131.0,86130.0,0.56171549]
[1743143298776,0.01854593,86131.0,86130.0,0.55010549]
[1743143299333,0.01854593,86131.0,86130.0,0.55210549]
[1743143300271,0.01854593,86131.0,86130.0,0.55410549]
[1743143301096,0.01854593,86131.0,86130.0,0.55406549]
[1743143302415,0.01854593,86131.0,86130.0,0.56298282]
[1743143303847,0.01854593,86131.0,86130.0,0.28147582]
[1743143304063,0.01854593,86131.0,86130.0,0.51368282]
[1743143304267,0.01854593,86131.0,86130.0,0.35938197]
[1743143304710,0.0003384,86131.0,86130.0,0.37392282]
[1743143304888,0.0003384,86131.0,86130.0,0.38553282]
[1743143305966,0.0003384,86131.0,86130.0,0.37392282]
[1743143307608,0.01854558,86131.0,86130.0,0.37392282]
[1743143307974,0.01854558,86131.0,86130.0,0.11825764]
[1743143307975,0.63284958,86131.0,86130.0,0.11825764]
[1743143308315,0.548827,86126.0,86125.0,4.4e-07]
[1743143308541,0.625927,86126.0,86125.0,4.4e-07]
[1743143308720,0.675327,86126.0,86125.0,4.4e-07]
[1743143309379,1.675327,86126.0,86125.0,4.4e-07]
[1743143309582,0.625964,86113.0,86112.0,0.0001692]
[1743143310388,0.64417851,86113.0,86112.0,0.0001692]
[1743143310993,0.64617851,86113.0,86112.0,0.0001692]
[1743143311592,1.64617851,86113.0,86112.0,0.0001692]
[1743143312436,1.64817851,86113.0,86112.0,0.0001692]
[1743143313804,1.76243615,86113.0,86112.0,0.0001692]
[1743143314574,1.74422164,86113.0,86112.0,0.0001692]
[1743143316973,1.629964,86113.0,86112.0,0.0001692]
[1743143318860,1.252864,86113.0,86112.0,0.0001692]
[1743143319190,1.27107815,86113.0,86112.0,0.0001692]
[1743143319631,1.27107815,86113.0,86112.0,0.11442684]
[1743143319632,1.02221415,86113.0,86112.0,0.11442684]
[1743143319819,1.02221415,86113.0,86112.0,0.14057969]
[1743143320038,1.02221415,86113.0,86112.0,0.12896769]
[1743143320408,0.02221415,86113.0,86112.0,0.12896769]
[1743143320614,0.02021415,86113.0,86112.0,0.12896769]
[1743143320798,0.02021415,86113.0,86112.0,0.14057969]
[1743143320997,0.02021415,86113.0,86112.0,0.15044588]
[1743143322040,0.02021415,86113.0,86112.0,0.13883388]
[1743143322186,0.02021415,86113.0,86112.0,0.12996769]
[1743143322567,0.01821415,86113.0,86112.0,0.12996769]
[1743143324679,0.011612,86115.0,86113.0,0.01454085]
[1743143324853,0.011612,86115.0,86114.0,0.12879849]
[1743143327317,0.011612,86115.0,86114.0,0.12979849]
[1743143328871,0.243859,86116.0,86114.0,0.12979849]
[1743143328872,0.011612,86116.0,86115.0,0.01454085]
[1743143329074,0.005,86118.0,86115.0,0.12879849]
[1743143329277,0.011611,86118.0,86116.0,0.11425764]
[1743143330222,0.016611,86118.0,86116.0,0.11425764]
[1743143330468,1.0,86117.0,86116.0,0.12879849]
[1743143330667,1.0,86117.0,86116.0,0.14018481]
[1743143330848,1.232242,86117.0,86116.0,0.12879849]
[1743143331048,1.232242,86117.0,86116.0,0.12979849]
[1743143331244,1.243854,86117.0,86116.0,0.12979849]
[1743143332498,1.243854,86117.0,86116.0,0.12879849]
[1743143333001,0.243854,86117.0,86116.0,0.12979849]
[1743143333914,0.243854,86117.0,86116.0,0.73279849]
[1743143337608,0.248854,86117.0,86116.0,0.71825764]
[1743143338060,0.26706559,86117.0,86116.0,0.71825764]
[1743143344182,0.248854,86117.0,86116.0,0.71825764]
[1743143348824,0.26706654,86117.0,86116.0,0.71825764]
[1743143353071,0.26706654,86117.0,86116.0,0.71842684]
[1743143354656,0.248854,86117.0,86116.0,0.71842684]
[1743143359195,0.26706673,86117.0,86116.0,0.71842684]
[1743143364803,0.248854,86117.0,86116.0,0.71842684]
[1743143367897,0.26706574,86117.0,86116.0,0.71842684]
[1743143374596,0.248854,86117.0,86116.0,0.71842684]
[1743143376444,0.243847,86119.0,86116.0,0.73296769]
[1743143376648,0.24385,86118.0,86117.0,0.01454085]
[1743143376864,0.24385,86118.0,86117.0,0.12879849]
[1743143378441,0.0003384,86125.0,86117.0,0.12879849]
[1743143378656,0.0003384,86125.0,86116.0,0.6031692]
[1743143378657,0.0003384,86125.0,86123.0,0.11425764]
[1743143378997,0.01821013,86124.0,86123.0,0.12879849]
[1743143379196,0.02982113,86124.0,86123.0,0.12879849]
[1743143380171,0.01821013,86124.0,86123.0,0.12879849]
[1743143381440,0.01821013,86124.0,86123.0,0.12979849]
[1743143381841,0.01821013,86124.0,86123.0,0.14140949]
[1743143382416,0.01821013,86124.0,86123.0,0.14040949]
[1743143382722,0.01821013,86124.0,86123.0,0.14140949]
[1743143383337,0.01821013,86124.0,86123.0,0.12979849]
[1743143383904,0.01821013,86124.0,86123.0,0.13079849]
[1743143384665,0.0003384,86125.0,86123.0,0.13079849]
[1743143385616,0.0003384,86125.0,86123.0,0.12979849]
[1743143386030,0.0003384,86125.0,86123.0,0.13079849]
[1743143387288,0.0003384,86125.0,86123.0,0.12979849]
[1743143387891,0.0003384,86125.0,86123.0,0.13079849]
[1743143389076,0.01854778,86125.0,86123.0,0.13079849]
[1743143389556,0.01854778,86125.0,86123.0,0.13096769]
[1743143390399,0.011611,86124.0,86123.0,0.13096769]
[1743143391188,0.011611,86124.0,86123.0,0.12996769]
[1743143391378,0.011611,86124.0,86123.0,0.12896769]
[1743143391548,0.011611,86124.0,86123.0,0.13096769]
[1743143392633,0.011611,86124.0,86123.0,0.73388769]
[1743143393541,0.03015878,86125.0,86123.0,0.73388769]
[1743143393773,0.01854778,86125.0,86123.0,0.73388769]
[1743143394400,0.01854778,86125.0,86123.0,0.73288769]
[1743143394594,0.0003384,86125.0,86123.0,0.96511269]
[1743143395032,0.0003384,86125.0,86123.0,0.74449869]
[1743143395237,0.0003384,86125.0,86124.0,0.37263249]
[1743143396480,0.0003384,86125.0,86124.0,0.37563249]
[1743143397201,0.0003384,86125.0,86124.0,0.37863249]
[1743143397404,0.0003384,86125.0,86124.0,0.37563249]
[1743143397925,0.0003384,86125.0,86124.0,0.37863249]
[1743143398405,0.0003384,86125.0,86124.0,0.37563249]
[1743143398754,0.0003384,86125.0,86124.0,0.37863249]
[1743143399213,0.01854586,86125.0,86124.0,0.37863249]
[1743143399510,0.01854586,86125.0,86124.0,0.38328449]
[1743143401942,0.01854586,86125.0,86124.0,0.46178449]
[1743143402138,0.01854586,86125.0,86124.0,0.78378449]
[1743143402360,0.0013384,86125.0,86124.0,2.61515849]
[1743143402581,0.0013384,86125.0,86124.0,3.06920034]
[1743143402775,0.0013384,86125.0,86124.0,2.88223434]
[1743143402976,0.0003384,86125.0,86124.0,2.11061234]
[1743143403179,0.0003384,86125.0,86124.0,2.10761234]
[1743143403439,0.0013384,86125.0,86124.0,2.11261234]
[1743143403617,0.0013384,86125.0,86124.0,2.11761234]
[1743143404038,0.0013384,86125.0,86124.0,2.66739134]
[1743143404247,0.0023384,86125.0,86124.0,2.54839134]
[1743143404523,0.0182075,86138.0,86130.0,0.28335785]
[1743143404683,0.0182075,86138.0,86130.0,0.96151149]
[1743143405027,0.0182075,86138.0,86130.0,0.81551549]
[1743143405421,0.0182075,86138.0,86130.0,0.94561149]
[1743143405601,0.0182075,86138.0,86130.0,1.08481149]
[1743143405797,0.0182075,86138.0,86130.0,1.09353311]
[1743143406009,0.0182075,86138.0,86130.0,1.22853311]
[1743143406213,0.0003384,86142.0,86130.0,1.22853311]
[1743143406630,0.0013384,86131.0,86130.0,1.23353311]
[1743143407245,0.0013384,86131.0,86130.0,1.22045511]
[1743143407659,0.0013384,86131.0,86130.0,1.08125511]
[1743143407885,0.0013384,86131.0,86130.0,1.10343711]
[1743143408086,0.0013384,86131.0,86130.0,0.84407659]
[1743143408307,0.2335424,86131.0,86130.0,0.15735959]
[1743143408640,0.2451524,86131.0,86130.0,0.12525764]
[1743143408986,0.37268864,86131.0,86130.0,0.12525764]
[1743143409185,0.2907524,86131.0,86130.0,0.11925764]
[1743143409394,0.2907524,86131.0,86130.0,0.13379849]
[1743143409611,0.2897524,86131.0,86130.0,0.11925764]
[1743143410013,0.2947524,86131.0,86130.0,0.11925764]
[1743143410585,0.2947524,86131.0,86130.0,0.12125764]
[1743143410935,1.2947524,86131.0,86130.0,0.12125764]
[1743143411134,1.2947524,86131.0,86130.0,0.11625764]
[1743143411514,1.6777524,86131.0,86130.0,0.002]
[1743143411719,1.6777524,86131.0,86130.0,0.004]
[1743143411969,1.79201004,86131.0,86130.0,0.004]
[1743143412486,1.79201004,86131.0,86130.0,0.002]
[1743143412487,1.6777524,86131.0,86130.0,0.002]
[1743143412719,0.243834,86124.0,86123.0,0.6030892]
[1743143412922,0.248834,86124.0,86123.0,0.71734684]
[1743143413394,0.243834,86124.0,86123.0,0.73188769]
[1743143413597,1.26204379,86124.0,86123.0,0.73188769]
[1743143414430,1.01820979,86124.0,86123.0,0.73488769]
[1743143414605,1.02982079,86124.0,86123.0,0.73488769]
[1743143414784,1.01820979,86124.0,86123.0,0.73788769]
[1743143414982,0.01820979,86124.0,86123.0,0.73788769]
[1743143415486,0.243828,86126.0,86124.0,0.01454085]
[1743143415685,0.243828,86126.0,86125.0,0.11425764]
[1743143415884,0.243828,86126.0,86125.0,0.12879849]
[1743143416863,0.243828,86126.0,86125.0,0.13079849]
[1743143417090,0.0003384,86131.0,86126.0,0.02615085]
[1743143417307,0.0003384,86131.0,86130.0,0.14040849]
[1743143418623,0.0003384,86131.0,86130.0,0.14240849]
[1743143419268,0.0003384,86131.0,86130.0,0.14140849]
[1743143419472,0.0003384,86131.0,86130.0,0.15299938]
[1743143419875,0.0003384,86131.0,86130.0,0.15199938]
[1743143420274,0.0003384,86131.0,86130.0,0.14338938]
[1743143420924,0.0003384,86131.0,86130.0,0.15499938]
[1743143421486,0.0003384,86131.0,86130.0,0.14338938]
[1743143421706,0.03015609,86131.0,86130.0,0.27391849]
[1743143421914,0.01854609,86131.0,86130.0,0.13479849]
[1743143422329,0.03015609,86131.0,86130.0,0.13479849]
[1743143423635,0.01854609,86131.0,86130.0,0.13479849]
[1743143424018,0.26236009,86131.0,86130.0,0.13479849]
[1743143425460,0.2441524,86131.0,86130.0,0.13479849]
[1743143428768,0.26236049,86131.0,86130.0,0.13479849]
[1743143428966,0.26236049,86131.0,86130.0,0.73763849]
[1743143430251,0.26236049,86131.0,86130.0,0.87675849]
[1743143430763,0.2441524,86131.0,86130.0,0.87675849]
[1743143433752,0.26236083,86131.0,86130.0,0.87675849]
[1743143433957,0.26236083,86131.0,86130.0,0.73763849]
[1743143434377,0.26736083,86131.0,86130.0,0.72309764]
[1743143434580,0.39696083,86131.0,86130.0,0.72309764]
[1743143434923,0.39696083,86131.0,86130.0,0.12025764]
[1743143435260,0.3787524,86131.0,86130.0,0.12025764]
[1743143435476,1.3787524,86131.0,86130.0,0.12025764]
[1743143435616,1.3787524,86131.0,86130.0,0.11725764]
[1743143435817,1.6787524,86131.0,86130.0,0.11725764]
[1743143437002,1.6787524,86131.0,86130.0,0.11425764]
[1743143439544,1.69696198,86131.0,86130.0,0.11425764]
[1743143444297,1.70852193,86131.0,86130.0,0.11425764]
[1743143444717,1.69031235,86131.0,86130.0,0.11425764]
[1743143445650,1.6787524,86131.0,86130.0,0.11425764]
[1743143449207,1.69696198,86131.0,86130.0,0.11425764]
[1743143450787,1.26236198,86131.0,86130.0,0.11425764]
[1743143450989,1.01854798,86131.0,86130.0,0.27944849]
[1743143451178,1.01854798,86131.0,86130.0,0.51165549]
[1743143451785,1.01854798,86131.0,86130.0,0.27959001]
[1743143452211,0.01854798,86131.0,86130.0,0.27959001]
[1743143452425,0.01854798,86131.0,86130.0,0.51179701]
[1743143452630,0.01854798,86131.0,86130.0,0.52340701]
[1743143453033,0.01854798,86131.0,86130.0,0.29320001]
[1743143453815,0.01854798,86131.0,86130.0,0.29520001]
[1743143454020,0.01854798,86131.0,86130.0,0.52740701]
[1743143454215,0.01854798,86131.0,86130.0,0.29520001]
[1743143454784,0.01854798,86131.0,86130.0,0.52740701]
[1743143455090,0.01854798,86131.0,86130.0,0.29520001]
[1743143456097,0.01854798,86131.0,86130.0,0.28359001]
[1743143457337,0.01854798,86131.0,86130.0,0.14455001]
[1743143457560,0.01854798,86131.0,86130.0,0.28355001]
[1743143458402,0.0003384,86131.0,86130.0,0.28355001]
[1743143460267,0.0119484,86131.0,86130.0,0.13279849]
[1743143460514,0.2441524,86131.0,86130.0,0.13279849]
[1743143460688,0.2491524,86131.0,86130.0,0.11825764]
[1743143461335,0.26736133,86131.0,86130.0,0.11825764]
[1743143461562,1.26736133,86131.0,86130.0,0.11825764]
[1743143461895,1.64826133,86131.0,86130.0,0.11825764]
[1743143462535,1.64826133,86131.0,86130.0,0.004]
[1743143462865,1.62197987,86131.0,86130.0,0.002]
[1743143463101,1.63358987,86131.0,86130.0,0.002]
[1743143463328,1.63358987,86131.0,86130.0,0.003]
[1743143463479,1.63358987,86131.0,86130.0,0.001]
[1743143463685,1.68088987,86131.0,86130.0,0.002]
[1743143464097,1.68088987,86131.0,86130.0,0.001]
[1743143464510,1.66268094,86131.0,86130.0,0.002]
[1743143464834,1.66268094,86131.0,86130.0,0.001]
[1743143465739,0.543822,86128.0,86127.0,0.60284]
[1743143465947,0.626022,86128.0,86127.0,0.60284]
[1743143466647,0.74027964,86128.0,86127.0,0.60284]
[1743143466974,0.626022,86128.0,86127.0,0.60384]
[1743143467387,1.626022,86128.0,86127.0,0.60384]
[1743143467507,1.626022,86128.0,86127.0,0.60284]
[1743143467737,0.326327,86126.0,86125.0,2e-07]
[1743143467913,0.326327,86126.0,86114.0,8e-07]
[1743143467914,0.005,86115.0,86114.0,8e-07]
[1743143468285,0.44381557,86115.0,86114.0,8e-07]
[1743143468605,0.440912,86115.0,86114.0,8e-07]
[1743143468715,1.440912,86115.0,86114.0,8e-07]
[1743143469356,1.440912,86115.0,86114.0,0.0020008]
[1743143469673,1.57338415,86115.0,86114.0,0.0020008]
[1743143470086,1.57338415,86115.0,86114.0,8e-07]
[1743143471585,1.57438415,86115.0,86114.0,8e-07]
[1743143471793,1.57338415,86115.0,86114.0,8e-07]
[1743143472007,1.57438415,86115.0,86114.0,8e-07]
[1743143472215,1.59804129,86115.0,86114.0,8e-07]
[1743143472407,1.59904129,86115.0,86114.0,8e-07]
[1743143473311,1.59804129,86115.0,86114.0,8e-07]
[1743143473510,1.59904129,86115.0,86114.0,8e-07]
[1743143474454,0.016612,86113.0,86112.0,1e-06]
[1743143474658,0.55796964,86113.0,86112.0,1e-06]
[1743143475786,0.56196964,86113.0,86112.0,1e-06]
[1743143476195,1.55796964,86113.0,86112.0,1e-06]
[1743143476471,1.56296964,86113.0,86112.0,1e-06]
[1743143476624,1.68604634,86113.0,86112.0,1e-06]
[1743143476832,1.68104634,86113.0,86112.0,1e-06]
[1743143477066,1.68704634,86113.0,86112.0,1e-06]
[1743143477637,1.71026463,86113.0,86112.0,1e-06]
[1743143478718,2.12796463,86113.0,86112.0,1e-06]
[1743143478929,0.548939,86087.0,86086.0,3e-07]
[1743143479140,0.631539,86087.0,86086.0,9.1e-07]
[1743143479352,0.64289165,86087.0,86086.0,9.1e-07]
[1743143479762,1.66111226,86087.0,86086.0,9.1e-07]
[1743143480186,1.66211226,86087.0,86086.0,9.1e-07]
[1743143480381,1.7763699,86087.0,86086.0,9.1e-07]
[1743143481177,1.7783699,86087.0,86086.0,9.1e-07]
[1743143481821,1.7773699,86087.0,86086.0,9.1e-07]
[1743143482030,1.80254441,86087.0,86086.0,9.1e-07]
[1743143484873,1.7843238,86087.0,86086.0,9.1e-07]
[1743143485508,1.7843238,86087.0,86086.0,0.00017021]
[1743143488182,1.89858144,86087.0,86086.0,2.1e-07]
[1743143488383,1.79314532,86087.0,86086.0,2.1e-07]
[1743143488851,1.7843238,86087.0,86086.0,2.1e-07]
[1743143489142,1.80254452,86087.0,86086.0,2.1e-07]
[1743143489350,1.79854452,86087.0,86086.0,2.1e-07]
[1743143489589,1.80154452,86087.0,86086.0,2.1e-07]
[1743143489793,1.80454452,86087.0,86086.0,2.1e-07]
[1743143490525,1.94350452,86087.0,86086.0,2.1e-07]
[1743143494761,1.9252838,86087.0,86086.0,2.1e-07]
[1743143495345,1.9222838,86087.0,86086.0,2.1e-07]
[1743143495594,1.9192838,86087.0,86086.0,2.1e-07]
[1743143495852,1.9272838,86087.0,86086.0,2.1e-07]
[1743143496804,1.9232838,86087.0,86086.0,2.1e-07]
[1743143497003,1.9282838,86087.0,86086.0,2.1e-07]
[1743143497208,1.9242838,86087.0,86086.0,2.1e-07]
[1743143497715,1.9292838,86087.0,86086.0,2.1e-07]
[1743143498152,1.9296224,86087.0,86086.0,2.1e-07]
[1743143499120,1.94784496,86087.0,86086.0,2.1e-07]
[1743143499744,0.632075,86074.0,86073.0,6.1e-07]
[1743143499950,0.632075,86074.0,86073.0,7.816e-05]
[1743143500633,1.6502985,86074.0,86073.0,7.816e-05]
[1743143501247,1.6542985,86074.0,86073.0,7.816e-05]
[1743143502024,1.6582985,86074.0,86073.0,7.816e-05]
[1743143502251,1.74504346,86074.0,86073.0,7.816e-05]
[1743143505452,1.5751985,86074.0,86073.0,7.816e-05]
[1743143505643,1.556975,86074.0,86073.0,7.816e-05]
[1743143507428,1.57972614,86074.0,86073.0,7.816e-05]
[1743143508906,1.57972614,86074.0,86067.0,0.04828434]
[1743143508907,0.243992,86068.0,86067.0,0.04828434]
[1743143509019,0.243992,86068.0,86067.0,0.16263001]
[1743143509235,0.005,86068.0,86067.0,0.16263001]
[1743143509675,1.008,86074.0,86070.0,0.011618]
[1743143509841,0.008,86074.0,86073.0,0.01471015]
[1743143510061,0.004,86074.0,86073.0,0.21938579]
[1743143510262,0.01822125,86075.0,86074.0,0.01454085]
[1743143510468,0.01822125,86075.0,86074.0,1.04997349]
[1743143510671,0.01822125,86075.0,86074.0,1.04797349]
[1743143511184,0.01822125,86075.0,86074.0,1.18685349]
[1743143511807,0.01822125,86075.0,86074.0,1.23385349]
[1743143512241,0.01822125,86075.0,86074.0,1.23285349]
[1743143512805,0.01822125,86075.0,86074.0,1.25721885]
[1743143513215,0.01822125,86075.0,86074.0,1.25621885]
[1743143513545,0.01822125,86075.0,86074.0,1.25821885]
[1743143514545,0.01822125,86075.0,86074.0,1.25921885]
[1743143517497,0.0003386,86087.0,86074.0,1.25921885]
[1743143517498,0.0003386,86087.0,86084.0,0.01454085]
[1743143517683,0.0003386,86087.0,86086.0,0.12879849]
[1743143518331,0.0003386,86087.0,86086.0,0.17639849]
[1743143520315,0.0119546,86087.0,86086.0,0.17639849]
[1743143520519,0.0119546,86087.0,86086.0,0.16185764]
[1743143520716,0.0119546,86087.0,86086.0,0.17639849]
[1743143521526,0.2442776,86087.0,86086.0,0.17639849]
[1743143521728,0.0003386,86087.0,86086.0,0.17639849]
[1743143521931,0.01855616,86087.0,86086.0,0.17639849]
[1743143522138,0.26249516,86087.0,86086.0,0.12879849]
[1743143522316,0.34038444,86087.0,86086.0,0.11425764]
[1743143523437,0.34038444,86087.0,86074.0,0.61794085]
[1743143523438,0.243972,86075.0,86074.0,0.61794085]
[1743143523639,0.248972,86075.0,86074.0,0.71765764]
[1743143524396,0.016617,86075.0,86074.0,0.71765764]
[1743143524834,0.011617,86078.0,86074.0,0.73219849]
[1743143525021,0.011616,86084.0,86074.0,0.73219849]
[1743143525022,0.243954,86082.0,86078.0,0.01454085]
[1743143525232,0.011616,86081.0,86080.0,0.01454085]
[1743143525437,0.011616,86082.0,86080.0,0.12879849]
[1743143525644,0.005,86086.0,86082.0,0.24687685]
[1743143525835,0.005,86086.0,86083.0,0.11425764]
[1743143525992,0.016616,86086.0,86083.0,0.11425764]
[1743143526603,0.237326,86086.0,86083.0,0.11425764]
[1743143526808,0.011616,86084.0,86083.0,0.12879849]
[1743143527728,0.005,86086.0,86083.0,0.12879849]
[1743143527938,0.01821824,86084.0,86083.0,0.12879849]
[1743143528681,0.01821824,86084.0,86083.0,0.37274749]
[1743143528826,0.01821824,86084.0,86083.0,0.42164749]
[1743143529245,0.01821824,86084.0,86083.0,0.42264749]
[1743143529586,0.01821824,86084.0,86083.0,0.17869849]
[1743143531279,0.01821824,86084.0,86083.0,0.78189849]
[1743143531650,0.02983424,86084.0,86083.0,0.78189849]
[1743143532473,0.01821824,86084.0,86083.0,0.78189849]
[1743143532907,0.01821824,86084.0,86083.0,1.01423149]
[1743143533628,0.01821824,86084.0,86083.0,0.78189849]
[1743143533965,0.01821824,86084.0,86083.0,1.01423149]
[1743143534606,0.0003386,86087.0,86084.0,0.01454085]
[1743143534793,0.0003386,86087.0,86086.0,0.01454085]
[1743143534987,0.0003386,86087.0,86086.0,0.12879849]
[1743143536882,0.0003386,86087.0,86086.0,0.37273949]
[1743143537375,0.0003386,86087.0,86086.0,0.12879849]
[1743143537747,0.01855628,86087.0,86086.0,0.12879849]
[1743143538265,0.01855628,86087.0,86086.0,0.14041449]
[1743143538992,0.01855628,86087.0,86086.0,0.12879849]
[1743143540813,0.01855628,86087.0,86086.0,0.73195849]
[1743143544633,0.0003386,86087.0,86086.0,0.73195849]
[1743143547208,0.0003386,86087.0,86086.0,0.74357449]
[1743143547404,0.0003386,86087.0,86086.0,0.82617449]
[1743143549299,0.01855534,86087.0,86086.0,0.82617449]
[1743143549542,0.01855534,86087.0,86086.0,0.82717449]
[1743143549781,0.01855534,86087.0,86086.0,0.73295849]
[1743143550001,0.03017134,86087.0,86086.0,0.73195849]
[1743143550168,0.04874057,86087.0,86086.0,0.71741764]
[1743143550377,0.03017134,86087.0,86086.0,0.72041764]
[1743143550571,0.03017134,86087.0,86086.0,0.73495849]
[1743143550943,0.03017134,86087.0,86086.0,0.73195849]
[1743143551390,0.03517134,86087.0,86086.0,0.71741764]
[1743143553102,0.03517134,86087.0,86086.0,0.71941764]
[1743143553691,0.03517134,86087.0,86086.0,0.60516]
[1743143553692,0.50059246,86087.0,86086.0,0.60516]
[1743143553872,0.49768837,86087.0,86086.0,0.60516]
[1743143554610,0.3979546,86087.0,86086.0,0.60516]
[1743143554844,0.3979546,86087.0,86086.0,0.71941764]
[1743143555049,1.3169546,86087.0,86086.0,0.71941764]
[1743143555466,1.0003386,86087.0,86086.0,0.71941764]
[1743143555665,1.0003386,86087.0,86086.0,0.96628349]
[1743143555867,1.0003386,86087.0,86086.0,0.73395849]
[1743143556279,0.0003386,86087.0,86086.0,0.73395849]
[1743143557234,0.0003386,86087.0,86086.0,0.73195849]
[1743143557460,0.0003386,86087.0,86086.0,0.74357449]
[1743143557683,0.0003386,86087.0,86086.0,0.97689949]
[1743143558274,0.01855483,86087.0,86086.0,0.97689949]
[1743143558496,0.01855483,86087.0,86086.0,0.74457449]
[1743143559677,0.01855483,86087.0,86086.0,0.73295849]
[1743143560507,0.03017083,86087.0,86086.0,0.76786549]
[1743143560796,0.26249383,86087.0,86086.0,0.76786549]
[1743143562704,0.03017083,86087.0,86086.0,0.76786549]
[1743143562899,0.01855483,86087.0,86086.0,0.76786549]
[1743143563312,0.01855483,86087.0,86086.0,1.00019049]
[1743143563508,0.01855483,86087.0,86086.0,1.01180649]
[1743143564609,0.0003386,86087.0,86086.0,1.01180649]
[1743143568833,0.0003386,86087.0,86086.0,1.0226697]
[1743143569334,0.01855407,86087.0,86086.0,1.0226697]
[1743143571371,0.01855407,86087.0,86086.0,0.7787287]
[1743143571512,0.03017007,86087.0,86086.0,0.9172887]
[1743143572585,0.01855407,86087.0,86086.0,0.9172887]
[1743143572921,0.01855407,86087.0,86086.0,0.9289047]
[1743143573549,0.01855407,86087.0,86086.0,0.91804149]
[1743143574592,0.0003386,86087.0,86086.0,0.91804149]
[1743143576811,0.0003386,86087.0,86086.0,0.92890334]
[1743143577710,0.01855389,86087.0,86086.0,0.92890334]
[1743143578870,0.01855389,86087.0,86086.0,0.92790334]
[1743143579287,0.01855389,86087.0,86086.0,0.93090334]
[1743143579691,0.01855389,86087.0,86086.0,0.93086334]